{"text_format":"1","workbook":"xlsx","n_sheets":12,"sheets":["Replica-Parti-Comuni","Mod-Copertina","Mod-Generica","Mod-ConsDoc","Mod-Rateazione","Mod-Situazione","Mod-Sollecito","Mod-Diffida","Mod-Attestazione","Mod-Certificazione","1","R"],"not_rendered":{"charts":0,"images":1,"macros":1,"external_links":0,"defined_names":12,"comments":0,"pivot_tables":0},"unopened":[],"bounds":{"document_bytes":16777216,"sheet_cells":100000,"rows_first":2000,"rows_last":500,"rows_between":2000,"halvings":0,"cell_chars":16384,"cell_head_chars":4096},"cells_cut":0,"cells_raw":0,"read":"whole","date_system":"1900"}

{"sheet":"Replica-Parti-Comuni","index":0,"n_rows":15,"n_cols":39,"rows_kept":15,"cut":false,"hidden":true,"merged":[[11,38,16,41],[10,3,11,35],[12,3,13,35],[14,3,14,35],[0,0,0,12],[0,23,0,35],[1,0,5,12],[1,23,5,35],[0,13,5,22]]}
["Amministratore",null,null,null,null,null,null,null,null,null,null,null,null,"C.F. 0000000000",null,null,null,null,null,null,null,null,null,"Condominio:\nCondominio Complesso “CUTURELLA”\nViale CUTURELLA - Via degli OLMI - Via CARCARA - Via TRENTO e TRIESTE\n88068 - SOVERATO (CZ)\n"]
["ing. Pietro CHIEFARI\nViale CUTURELLA, 2/D\n88068  - SOVERATO (CZ)\ntel 000-000000\ncondominio.prototipo@gmail.com\n",null,null,null,null,null,null,null,null,null,null,null,null,null,null,null,null,null,null,null,null,null,null,"PROTOTIPO\nVia BELLA, 22-30-38\n88068 - SOVERATO (CZ)\nIBAN: IT74L0760104400000000000067 \nc.c.p.: 0000000067\n"]
[]
[]
[]
[]
[]
[]
[]
[null,null,"I pagamenti possono essere eseguiti secondo una delle seguenti modalità"]
[null,null,"·   ","direttamente all’amministratore in contanti o assegno bancario intestato a \"Condominio PROTOTIPO\""]
[null,null,null,null,null,null,null,null,null,null,null,null,null,null,null,null,null,null,null,null,null,null,null,null,null,null,null,null,null,null,null,null,null,null,null,null,null,null,"ATTENZIONE!!!\nPrima di copiare la firma occorre cancellare le firme nei singoli fogli."]
[null,null,"·","tramite versamento su c.c.p. n°  0000000067 intestato a \" Condominio PROTOTIPO\""]
[]
[null,null,"·","tramite bonifico  bancario al seguente IBAN:    IT74L0760104400000000000067 "]

{"sheet":"Mod-Copertina","index":1,"n_rows":50,"n_cols":14,"rows_kept":50,"cut":false,"hidden":false,"merged":[[16,3,16,5],[2,1,2,8],[3,1,3,8],[4,1,4,8],[5,1,5,8],[15,3,15,5],[47,1,48,8],[49,1,51,8],[17,2,18,7],[37,1,37,8],[40,2,40,7],[43,1,44,8],[45,1,46,8],[22,2,23,7],[20,2,20,7],[42,6,42,8]]}
[]
[null,"   "]
[null,"Condominio PROTOTIPO"]
[null,"Via BELLA, 22-30-38\n88068 SOVERATO (CZ)"]
[null,"C.F. 80004220796"]
[]
[]
[]
[]
[]
[]
[]
[]
[]
[]
[]
[null,null,null,null,null,null,null,null,null,null,null,null,null,"      "]
[null,null,"campo titolo delle stampe"]
[]
[]
[null,null,"campo codice del lavoro"]
[]
[null,null,"campo denominazione del lavoro"]
[]
[]
[]
[]
[]
[]
[]
[]
[]
[]
[]
[]
[]
[]
[]
[]
[]
[null,null,"campo aggiornamento o redazione"]
[]
[null,null,null,null,null,null,"campo data di stampa"]
[null,"Amministratore:"]
[]
[null,"Ing. Pietro CHIEFARI"]
[]
[null,"Viale CUTURELLA, 2/D"]
[]
[null,"88068 SOVERATO (CZ) "]

{"sheet":"Mod-Generica","index":2,"n_rows":44,"n_cols":25,"rows_kept":44,"cut":false,"hidden":true,"merged":[[13,24,13,27],[0,0,0,12],[0,23,0,35],[1,0,5,12],[1,23,5,35],[0,13,5,22]]}
["Amministratore",null,null,null,null,null,null,null,null,null,null,null,null,"C.F. 0000000000",null,null,null,null,null,null,null,null,null,"Condominio:\nCondominio Complesso “CUTURELLA”\nViale CUTURELLA - Via degli OLMI - Via CARCARA - Via TRENTO e TRIESTE\n88068 - SOVERATO (CZ)\n"]
["ing. Pietro CHIEFARI\nViale CUTURELLA, 2/D\n88068  - SOVERATO (CZ)\ntel 000-000000\ncondominio.prototipo@gmail.com\n",null,null,null,null,null,null,null,null,null,null,null,null,null,null,null,null,null,null,null,null,null,null,"PROTOTIPO\nVia BELLA, 22-30-38\n88068 - SOVERATO (CZ)\nIBAN: IT74L0760104400000000000067 \nc.c.p.: 0000000067\n"]
[]
[]
[]
[]
[]
[]
[null,null,null,null,null,null,null,null,null,null,null,null,null,null,null,null,null,null,"[Gent.mi Sig.ri]"]
[null,null,null,null,null,null,null,null,null,null,null,null,null,null,null,null,null,null,"[Condomino - Colonna B]"]
[null,null,null,null,null,null,null,null,null,null,null,null,null,null,null,null,null,null,"[Indirizzo - Colonna D]"]
[null,null,null,null,null,null,null,null,null,null,null,null,null,null,null,null,null,null,"[CAP e CITTÀ Colonne E, F e G]"]
[]
[null,null,null,null,null,null,null,null,null,null,null,null,null,null,null,null,null,null,null,null,null,null,null,null,"[millesimi]"]
[]
[]
[]
[null,null,"OGGETTO: "]
[]
[null,null,"Con la presente si informa la S.V. di quanto segue:"]
[]
[]
[]
[]
[]
[]
[]
[]
[]
[]
[]
[]
[]
[]
[]
[]
[]
[]
[]
[]
[null,null,{"$f":"\"CATANZARO  \" & TEXT(TODAY(),\"gg-mmmm-aaaa\")","v":"CATANZARO  24-maggio-2020"}]
[]
[]
[null,null,null,null,null,null,null,null,null,null,null,null,null,null,null,null,null,null,null,null,null,null,null,null,"L'Amministratore"]

{"sheet":"Mod-ConsDoc","index":3,"n_rows":42,"n_cols":25,"rows_kept":42,"cut":false,"hidden":true,"merged":[[39,2,39,34],[21,2,21,34],[13,24,13,27],[35,2,36,34],[0,0,0,12],[0,23,0,35],[1,0,5,12],[1,23,5,35],[0,13,5,22]]}
["Amministratore",null,null,null,null,null,null,null,null,null,null,null,null,"C.F. 0000000000",null,null,null,null,null,null,null,null,null,"Condominio:\nCondominio Complesso “CUTURELLA”\nViale CUTURELLA - Via degli OLMI - Via CARCARA - Via TRENTO e TRIESTE\n88068 - SOVERATO (CZ)\n"]
["ing. Pietro CHIEFARI\nViale CUTURELLA, 2/D\n88068  - SOVERATO (CZ)\ntel 000-000000\ncondominio.prototipo@gmail.com\n",null,null,null,null,null,null,null,null,null,null,null,null,null,null,null,null,null,null,null,null,null,null,"PROTOTIPO\nVia BELLA, 22-30-38\n88068 - SOVERATO (CZ)\nIBAN: IT74L0760104400000000000067 \nc.c.p.: 0000000067\n"]
[]
[]
[]
[]
[]
[]
[null,null,null,null,null,null,null,null,null,null,null,null,null,null,null,null,null,null,"[Gent.mi Sig.ri]"]
[null,null,null,null,null,null,null,null,null,null,null,null,null,null,null,null,null,null,"[Condomino - Colonna B]"]
[null,null,null,null,null,null,null,null,null,null,null,null,null,null,null,null,null,null,"[Indirizzo - Colonna D]"]
[null,null,null,null,null,null,null,null,null,null,null,null,null,null,null,null,null,null,"[CAP e CITTÀ Colonne E, F e G]"]
[]
[null,null,null,null,null,null,null,null,null,null,null,null,null,null,null,null,null,null,null,null,null,null,null,null,"[millesimi]"]
[]
[]
[]
[null,null,"RICEVUTA DI AVVENUTA CONSEGNA DI DOCUMENTI"]
[]
[null,null,"Il/La sottoscritto/a   _____________________________________________________"]
[]
[null,null,"dichiara di aver ricevuto dall'Amministratore i seguenti documenti condominiali, indirizzati all'intestatario del presente modulo:"]
[]
[null,null,"●"," il verbale relativo all'assemblea condominiale di giorno 24/05/2018"]
[null,null,"●"," il verbale relativo all'assemblea condominiale di giorno 25/05/2018"]
[null,null,"●","informativa sulla privacy ai sensi del GDPR 679/2016"]
[]
[null,null,"Dichiara inoltre di aver accettato tali documenti in qualità di "]
[]
[null,null,null,"¨",null,"Condomino intestatario"]
[]
[null,null,null,"¨",null,"Familiare"]
[]
[null,null,null,"¨",null,"____________________________"]
[]
[null,null,"e si impegna, se non condomino intestario, a farli avere, nel più breve tempo possibile, al condomino intestatario della presente."]
[]
[]
[]
[null,null,"La consegna è avvenuta in data  ______________________"]
[]
[null,null,null,null,null,null,null,null,null,null,null,null,null,null,null,null,null,null,null,null,"In fede"]

{"sheet":"Mod-Rateazione","index":4,"n_rows":46,"n_cols":27,"rows_kept":46,"cut":false,"hidden":true,"merged":[[40,2,41,34],[29,9,29,12],[29,13,29,20],[29,21,29,26],[30,9,30,20],[30,21,30,26],[35,3,36,35],[37,3,38,35],[39,3,39,35],[27,9,27,12],[27,13,27,20],[27,21,27,26],[28,9,28,12],[28,13,28,20],[28,21,28,26],[26,9,26,12],[26,13,26,20],[26,21,26,26],[23,2,23,27],[25,9,25,12],[25,13,25,20],[25,21,25,26],[17,2,17,33],[18,7,18,25],[20,2,20,26],[21,29,21,33],[0,0,0,12],[0,13,5,22],[0,23,0,35],[1,0,5,12],[1,23,5,35],[13,24,13,27],[19,2,19,33]]}
["Amministratore",null,null,null,null,null,null,null,null,null,null,null,null,"C.F. 0000000000",null,null,null,null,null,null,null,null,null,"Condominio:\nCondominio Complesso “CUTURELLA”\nViale CUTURELLA - Via degli OLMI - Via CARCARA - Via TRENTO e TRIESTE\n88068 - SOVERATO (CZ)\n"]
["ing. Pietro CHIEFARI\nViale CUTURELLA, 2/D\n88068  - SOVERATO (CZ)\ntel 000-000000\ncondominio.prototipo@gmail.com\n",null,null,null,null,null,null,null,null,null,null,null,null,null,null,null,null,null,null,null,null,null,null,"PROTOTIPO\nVia BELLA, 22-30-38\n88068 - SOVERATO (CZ)\nIBAN: IT74L0760104400000000000067 \nc.c.p.: 0000000067\n"]
[]
[]
[]
[]
[]
[]
[null,null,null,null,null,null,null,null,null,null,null,null,null,null,null,null,null,null,"[Gent.mi Sig.ri]"]
[null,null,null,null,null,null,null,null,null,null,null,null,null,null,null,null,null,null,"[Condomino - Colonna B]"]
[null,null,null,null,null,null,null,null,null,null,null,null,null,null,null,null,null,null,"[Indirizzo - Colonna D]"]
[null,null,null,null,null,null,null,null,null,null,null,null,null,null,null,null,null,null,"[CAP e CITTÀ Colonne E, F e G]"]
[]
[null,null,null,null,null,null,null,null,null,null,null,null,null,null,null,null,null,null,null,null,null,null,null,null,"[millesimi]"]
[]
[]
[]
[null,null,"OGGETTO: RATE CONTRIBUTI CONDOMINIALI PER FONDO LAVORI STRAORDINARI"]
[null,null,null,null,null,null,null,"(assemblea condominiale del 10-gennaio-2017)"]
[]
[null,null,"Dal prospetto di ripartizione delle spese a preventivo per l'esecuzione dei lavori, approvato dall'Assemblea di cui all'oggetto, risulta a suo carico il contributo di "]
[null,null,null,null,null,null,null,null,null,null,null,null,null,null,null,null,null,null,null,null,null,null,null,null,null,null,"euro"]
[]
[null,null,"La rateazione del dovuto, secondo la stessa delibera, è riportatata nel sottostante prospetto."]
[]
[null,null,null,null,null,null,null,null,null,"Rata",null,null,null,"Scad.",null,null,null,null,null,null,null,"Importo"]
[null,null,null,null,null,null,null,null,null,"1a"]
[null,null,null,null,null,null,null,null,null,"2a"]
[null,null,null,null,null,null,null,null,null,"3a"]
[null,null,null,null,null,null,null,null,null,"4a"]
[null,null,null,null,null,null,null,null,null,"Totale euro",null,null,null,null,null,null,null,null,null,null,null,{"$f":"SUM(V27:V30)","v":0}]
[]
[]
[]
[null,null,"I pagamenti possono essere eseguiti secondo una delle seguenti modalità"]
[null,null,"·   ","direttamente all’amministratore in contanti o assegno bancario intestato a \"Condominio PROTOTIPO\""]
[]
[null,null,"·","tramite versamento su c.c.p. n°  0000000067 intestato a \" Condominio PROTOTIPO\""]
[]
[null,null,"·","tramite bonifico  bancario al seguente IBAN:    IT74L0760104400000000000067 "]
[null,null,"È gradito in ogni caso l'anticipo, in tutto o in parte, del versamento delle rate, al fine di agevolare e ottimizzare la gestione del Condominio."]
[]
[]
[null,null,"Distinti saluti."]
[]
[null,null,{"$f":"\"CATANZARO  \" & TEXT(TODAY(),\"gg-mmmm-aaaa\")","v":"CATANZARO  24-maggio-2020"},null,null,null,null,null,null,null,null,null,null,null,null,null,null,null,null,null,null,null,null,"L'amministratore"]

{"sheet":"Mod-Situazione","index":5,"n_rows":55,"n_cols":32,"rows_kept":55,"cut":false,"hidden":true,"merged":[[47,3,48,35],[49,3,50,35],[42,2,42,35],[40,2,40,5],[40,6,40,20],[40,21,40,25],[40,26,40,30],[40,31,40,35],[41,2,41,5],[41,6,41,20],[41,21,41,25],[41,26,41,30],[41,31,41,35],[38,2,38,5],[38,6,38,20],[38,21,38,25],[38,26,38,30],[38,31,38,35],[39,2,39,5],[39,6,39,20],[39,21,39,25],[39,26,39,30],[39,31,39,35],[36,2,36,5],[36,6,36,20],[36,21,36,25],[36,26,36,30],[36,31,36,35],[37,2,37,5],[37,6,37,20],[37,21,37,25],[37,26,37,30],[37,31,37,35],[34,2,34,5],[34,6,34,20],[34,21,34,25],[34,26,34,30],[34,31,34,35],[35,2,35,5],[35,6,35,20],[35,21,35,25],[35,26,35,30],[35,31,35,35],[32,2,32,5],[32,6,32,20],[32,21,32,25],[32,26,32,30],[32,31,32,35],[33,2,33,5],[33,6,33,20],[33,21,33,25],[33,26,33,30],[33,31,33,35],[30,2,30,5],[30,6,30,20],[30,21,30,25],[30,26,30,30],[30,31,30,35],[31,2,31,5],[31,6,31,20],[31,21,31,25],[31,26,31,30],[31,31,31,35],[28,2,28,5],[28,6,28,20],[28,21,28,25],[28,26,28,30],[28,31,28,35],[29,2,29,5],[29,6,29,20],[29,21,29,25],[29,26,29,30],[29,31,29,35],[26,2,26,5],[26,6,26,20],[26,21,26,25],[26,26,26,30],[26,31,26,35],[27,2,27,5],[27,6,27,20],[27,21,27,25],[27,26,27,30],[27,31,27,35],[24,2,24,5],[24,6,24,20],[24,21,24,25],[24,26,24,30],[24,31,24,35],[25,2,25,5],[25,6,25,20],[25,21,25,25],[25,26,25,30],[25,31,25,35],[51,3,51,35],[13,24,13,27],[21,2,21,5],[21,6,21,20],[21,21,21,25],[21,26,21,30],[21,31,21,35],[0,0,0,12],[0,13,5,22],[0,23,0,35],[1,0,5,12],[1,23,5,35],[7,24,7,27],[18,6,18,34],[22,2,22,5],[22,6,22,20],[22,21,22,25],[22,26,22,30],[22,31,22,35],[23,2,23,5],[23,6,23,20],[23,21,23,25],[23,26,23,30],[23,31,23,35]]}
["Amministratore",null,null,null,null,null,null,null,null,null,null,null,null,"C.F. 0000000000",null,null,null,null,null,null,null,null,null,"Condominio:\nCondominio Complesso “CUTURELLA”\nViale CUTURELLA - Via degli OLMI - Via CARCARA - Via TRENTO e TRIESTE\n88068 - SOVERATO (CZ)\n"]
["ing. Pietro CHIEFARI\nViale CUTURELLA, 2/D\n88068  - SOVERATO (CZ)\ntel 000-000000\ncondominio.prototipo@gmail.com\n",null,null,null,null,null,null,null,null,null,null,null,null,null,null,null,null,null,null,null,null,null,null,"PROTOTIPO\nVia BELLA, 22-30-38\n88068 - SOVERATO (CZ)\nIBAN: IT74L0760104400000000000067 \nc.c.p.: 0000000067\n"]
[]
[]
[]
[]
[]
[]
[null,null,null,null,null,null,null,null,null,null,null,null,null,null,null,null,null,null,"[Gent.mi Sig.ri]"]
[null,null,null,null,null,null,null,null,null,null,null,null,null,null,null,null,null,null,"[Condomino - Colonna B]"]
[null,null,null,null,null,null,null,null,null,null,null,null,null,null,null,null,null,null,"[Indirizzo - Colonna D]"]
[null,null,null,null,null,null,null,null,null,null,null,null,null,null,null,null,null,null,"[CAP e CITTÀ Colonne E, F e G]"]
[]
[null,null,null,null,null,null,null,null,null,null,null,null,null,null,null,null,null,null,null,null,null,null,null,null,"[millesimi]"]
[]
[]
[]
[null,null,"OGGETTO: SITUAZIONE CONTABILE PER CONTRIBUTI GESTIONE LAVORI STRORDINARI"]
[null,null,null,null,null,null,"(indicazione lavori)"]
[null,null,"Si trasmette il prospetto della Sua situazione contabile alla data odierna"]
[]
[null,null,"DATA",null,null,null,"OPERAZIONE CONTABILE",null,null,null,null,null,null,null,null,null,null,null,null,null,null,"DEBITO\nOPERAZIONE",null,null,null,null,"CREDITO\nOPERAZIONE",null,null,null,null,"SALDO\nalla DATA"]
[]
[]
[]
[]
[]
[]
[]
[]
[]
[]
[]
[]
[]
[]
[]
[]
[]
[]
[]
[]
[null,null,"La colonna \"SALDO alla DATA\" riporta il saldo contabile progressivo alla data dell'operazione.\nIl credito vantato dal condomino nei confronti del condominio è riportato in positivo, mentre è riportato in negativo il debito che il condomino ha nei confronti del condominio."]
[]
[]
[]
[null,null,"I pagamenti possono essere eseguiti secondo una delle seguenti modalità"]
[null,null,"·   ","direttamente all’amministratore in contanti o assegno bancario intestato a \"Condominio PROTOTIPO\""]
[]
[null,null,"·","tramite versamento su c.c.p. n°  0000000067 intestato a \" Condominio PROTOTIPO\""]
[]
[null,null,"·","tramite bonifico  bancario al seguente IBAN:    IT74L0760104400000000000067 "]
[null,null,"Distinti saluti."]
[]
[null,null,{"$f":"\"CATANZARO  \" & TEXT(TODAY(),\"gg-mmmm-aaaa\")","v":"CATANZARO  24-maggio-2020"},null,null,null,null,null,null,null,null,null,null,null,null,null,null,null,null,null,null,null,null,"L'amministratore"]

{"sheet":"Mod-Sollecito","index":6,"n_rows":55,"n_cols":25,"rows_kept":55,"cut":false,"hidden":true,"merged":[[46,2,49,34],[31,8,31,12],[31,13,31,18],[31,19,31,22],[32,8,32,18],[32,19,32,22],[34,2,35,34],[36,10,36,19],[37,10,37,19],[41,3,42,35],[43,3,44,35],[45,3,45,35],[29,8,29,12],[29,13,29,18],[29,19,29,22],[30,8,30,12],[30,13,30,18],[30,19,30,22],[27,8,27,12],[27,13,27,18],[27,19,27,22],[28,8,28,12],[28,13,28,18],[28,19,28,22],[0,23,0,35],[1,0,5,12],[1,23,5,35],[13,24,13,27],[26,8,26,12],[26,13,26,18],[26,19,26,22],[0,0,0,12],[0,13,5,22],[17,1,17,34],[21,2,23,34],[25,8,25,12],[25,13,25,18],[25,19,25,22],[18,2,18,33]]}
["Amministratore",null,null,null,null,null,null,null,null,null,null,null,null,"C.F. 0000000000",null,null,null,null,null,null,null,null,null,"Condominio:\nCondominio Complesso “CUTURELLA”\nViale CUTURELLA - Via degli OLMI - Via CARCARA - Via TRENTO e TRIESTE\n88068 - SOVERATO (CZ)\n"]
["ing. Pietro CHIEFARI\nViale CUTURELLA, 2/D\n88068  - SOVERATO (CZ)\ntel 000-000000\ncondominio.prototipo@gmail.com\n",null,null,null,null,null,null,null,null,null,null,null,null,null,null,null,null,null,null,null,null,null,null,"PROTOTIPO\nVia BELLA, 22-30-38\n88068 - SOVERATO (CZ)\nIBAN: IT74L0760104400000000000067 \nc.c.p.: 0000000067\n"]
[]
[]
[]
[]
[]
[]
[null,null,null,null,null,null,null,null,null,null,null,null,null,null,null,null,null,null,"[Gent.mi Sig.ri]"]
[null,null,null,null,null,null,null,null,null,null,null,null,null,null,null,null,null,null,"[Condomino - Colonna B]"]
[null,null,null,null,null,null,null,null,null,null,null,null,null,null,null,null,null,null,"[Indirizzo - Colonna D]"]
[null,null,null,null,null,null,null,null,null,null,null,null,null,null,null,null,null,null,"[CAP e CITTÀ Colonne E, F e G]"]
[]
[null,null,null,null,null,null,null,null,null,null,null,null,null,null,null,null,null,null,null,null,null,null,null,null,"[millesimi]"]
[]
[]
[]
[null,"OGGETTO: SOLLECITO DI PAGAMENTO CONTRIBUTI GESTIONE STRAORDINARIA LAVORI"]
[null,null,"(Indicazione lavori)"]
[]
[]
[null,null,"Alla data della presente, dalle risultanze dei libri contabili, si rileva una sua situazione debitoria nei confronti del condominio per contributi di sua spettanza non ancora pagati alle date di scadenza, riassunta nel seguente prospetto:"]
[]
[]
[]
[null,null,null,null,null,null,null,null,"Causale",null,null,null,null,"Scadenza",null,null,null,null,null,"Importo"]
[]
[]
[]
[]
[]
[]
[null,null,null,null,null,null,null,null,"Totale euro",null,null,null,null,null,null,null,null,null,null,{"$f":"SUM(T27:T32)","v":0}]
[]
[null,null,"Dell'importo di cui sopra è da considerare in mora, in quanto sono trascorsi più di 90 giorni dalla data di scadenza, l'importo seguente"]
[]
[null,null,null,null,null,null,null,null,null,null,"Importo debito in mora:"]
[]
[]
[]
[null,null,"I pagamenti possono essere eseguiti secondo una delle seguenti modalità"]
[null,null,"·   ","direttamente all’amministratore in contanti o assegno bancario intestato a \"Condominio PROTOTIPO\""]
[]
[null,null,"·","tramite versamento su c.c.p. n°  0000000067 intestato a \" Condominio PROTOTIPO\""]
[]
[null,null,"·","tramite bonifico  bancario al seguente IBAN:    IT74L0760104400000000000067 "]
[null,null,"Nel protrarsi della Sua inadempienza, per quanto concerne l'importo in mora, mi vedrò costretto a richiedere quanto dovuto mediante diffida con raccomadata R.R. e conseguente aggravio di spese a Suo carico, prima di dar corso alla procedura coattiva per la riscossione delle somme dovute."]
[]
[]
[]
[null,null,"Se nel frattempo Lei avesse già effettuato il pagamento, non tenga conto della presente."]
[]
[null,null,"In attesa di un pronto riscontro, porgo distinti saluti."]
[]
[null,null,{"$f":"\"CATANZARO  \" & TEXT(TODAY(),\"gg-mmmm-aaaa\")","v":"CATANZARO  24-maggio-2020"},null,null,null,null,null,null,null,null,null,null,null,null,null,null,null,null,null,null,null,null,"L'amministratore"]

{"sheet":"Mod-Diffida","index":7,"n_rows":61,"n_cols":26,"rows_kept":61,"cut":false,"hidden":true,"merged":[[51,2,52,34],[53,2,54,34],[33,5,33,24],[33,25,33,30],[34,5,34,24],[34,25,34,30],[46,1,47,34],[35,5,35,24],[35,25,35,30],[36,5,36,24],[36,25,36,30],[38,1,40,34],[42,1,44,34],[30,5,30,24],[30,25,30,30],[31,5,31,24],[31,25,31,30],[32,5,32,24],[32,25,32,30],[27,5,27,24],[27,25,27,30],[28,5,28,24],[28,25,28,30],[29,5,29,24],[29,25,29,30],[55,2,55,34],[13,24,13,27],[0,0,0,12],[0,13,5,22],[0,23,0,35],[1,0,5,12],[1,23,5,35],[17,1,17,34],[21,1,22,34],[24,5,24,24],[24,25,24,30],[25,5,25,24],[25,25,25,30],[18,2,18,33],[26,5,26,24],[26,25,26,30]]}
["Amministratore",null,null,null,null,null,null,null,null,null,null,null,null,"C.F. 0000000000",null,null,null,null,null,null,null,null,null,"Condominio:\nCondominio Complesso “CUTURELLA”\nViale CUTURELLA - Via degli OLMI - Via CARCARA - Via TRENTO e TRIESTE\n88068 - SOVERATO (CZ)\n"]
["ing. Pietro CHIEFARI\nViale CUTURELLA, 2/D\n88068  - SOVERATO (CZ)\ntel 000-000000\ncondominio.prototipo@gmail.com\n",null,null,null,null,null,null,null,null,null,null,null,null,null,null,null,null,null,null,null,null,null,null,"PROTOTIPO\nVia BELLA, 22-30-38\n88068 - SOVERATO (CZ)\nIBAN: IT74L0760104400000000000067 \nc.c.p.: 0000000067\n"]
[]
[]
[]
[]
[]
[]
[null,null,null,null,null,null,null,null,null,null,null,null,null,null,null,null,null,null,"[Gent.mi Sig.ri]"]
[null,null,null,null,null,null,null,null,null,null,null,null,null,null,null,null,null,null,"[Condomino - Colonna B]"]
[null,null,null,null,null,null,null,null,null,null,null,null,null,null,null,null,null,null,"[Indirizzo - Colonna D]"]
[null,null,null,null,null,null,null,null,null,null,null,null,null,null,null,null,null,null,"[CAP e CITTÀ Colonne E, F e G]"]
[]
[null,null,null,null,null,null,null,null,null,null,null,null,null,null,null,null,null,null,null,null,null,null,null,null,"[millesimi]"]
[]
[]
[]
[null,"OGGETTO: DIFFIDA PER MANCATO VERSAMENTO CONTRIBUTI CONDOMINIALI LAVORI STRAORDINARI"]
[null,null,"(indicazione lavori)"]
[]
[]
[null,"Premessa la seguente Sua situazione per i contributi condominiali scaduti alla data della presente e non ancora pagati"]
[]
[]
[null,null,null,null,null,"Contributo non versato",null,null,null,null,null,null,null,null,null,null,null,null,null,null,null,null,null,null,null,"Importo"]
[]
[]
[]
[]
[]
[]
[]
[]
[]
[]
[]
[null,null,null,null,null,"TOTALE",null,null,null,null,null,null,null,null,null,null,null,null,null,null,null,null,null,null,null,{"$f":"SUM(Z26:AE34)","v":0}]
[]
[null,"Con la presente Le sollecito il pagamento dei contributi condominiali di cui sopra, entro il termine perentorio di giorni 15 dal ricevimento della presente raccomandata. Ove per data di ricevimento è da intendersi quella comunicata da POSTE ITALIANE come data di consegna o di rilascio dell'avviso di giacenza."]
[]
[]
[]
[null,"Le preannuncio che in difetto di quanto sopra, mi vedrò costretto, mio malgrado, al recupero coatto delle somme dovute, con aggravio a suo carico delle maggior spese, senza ulteriori avvisi."]
[]
[]
[]
[null,"La presente vale quale diffida e formale messa in mora, ai sensi e per gli effetti dell'art. 1219 C.C. e ad ogni effetto di legge e, come tale, interruttiva di ogni termine prescrizionale."]
[]
[]
[]
[null,"I pagamenti possono essere eseguiti secondo una delle seguenti modalità"]
[null,"·   ","direttamente all’amministratore in contanti o assegno bancario intestato a \"Condominio PROTOTIPO\""]
[]
[null,"·","tramite versamento su c.c.p. n°  0000000067 intestato a \" Condominio PROTOTIPO\""]
[]
[null,"·","tramite bonifico  bancario al seguente IBAN:    IT74L0760104400000000000067 "]
[null,"Se nel frattempo Lei avesse già effettuato il pagamento, non tenga conto della presente."]
[]
[null,"In attesa di un pronto riscontro, porgo distinti saluti."]
[]
[null,null,{"$f":"\"CATANZARO  \" & TEXT(TODAY(),\"gg-mmmm-aaaa\")","v":"CATANZARO  24-maggio-2020"},null,null,null,null,null,null,null,null,null,null,null,null,null,null,null,null,null,null,null,null,"L'amministratore"]

{"sheet":"Mod-Attestazione","index":8,"n_rows":55,"n_cols":25,"rows_kept":55,"cut":false,"hidden":true,"merged":[[20,1,20,34],[0,0,0,12],[0,13,5,22],[0,23,0,35],[1,0,5,12],[1,23,5,35],[7,0,7,35],[8,0,8,35],[10,1,10,35],[11,0,11,35],[12,1,12,35],[13,0,13,35],[14,1,14,35],[17,1,17,34],[18,1,18,34],[22,1,22,13],[22,14,22,20],[22,21,22,34],[23,1,23,13],[23,14,23,20],[23,21,23,34],[24,1,24,13],[24,14,24,20],[24,21,24,34],[25,1,25,13],[25,14,25,20],[25,21,25,34],[26,1,26,13],[26,14,26,20],[26,21,26,34],[27,1,27,13],[27,14,27,20],[27,21,27,34],[28,1,28,13],[28,14,28,20],[28,21,28,34],[29,1,29,13],[29,14,29,20],[29,21,29,34],[30,1,30,13],[30,14,30,20],[30,21,30,34],[31,1,31,13],[31,14,31,20],[31,21,31,34],[32,1,32,13],[32,14,32,20],[32,21,32,34],[33,1,33,13],[33,14,33,20],[33,21,33,34],[34,1,34,13],[34,14,34,20],[34,21,34,34],[35,1,35,13],[35,14,35,20],[35,21,35,34],[36,1,36,13],[36,14,36,20],[36,21,36,34],[37,1,37,13],[37,14,37,20],[37,21,37,34],[38,1,38,13],[38,14,38,20],[38,21,38,34],[39,1,39,13],[39,14,39,20],[39,21,39,34],[45,1,45,34],[40,1,40,13],[40,14,40,20],[40,21,40,34],[41,1,41,13],[41,14,41,20],[41,21,41,34],[42,1,42,13],[42,14,42,20],[42,21,42,34],[43,1,43,13],[43,14,43,20],[49,1,49,10],[49,11,49,18],[49,20,49,27],[46,11,46,18],[46,20,46,27],[47,1,47,10],[47,11,47,18],[47,20,47,27],[48,1,48,10],[48,11,48,18],[48,20,48,27]]}
["Amministratore",null,null,null,null,null,null,null,null,null,null,null,null,"C.F. 0000000000",null,null,null,null,null,null,null,null,null,"Condominio:\nCondominio Complesso “CUTURELLA”\nViale CUTURELLA - Via degli OLMI - Via CARCARA - Via TRENTO e TRIESTE\n88068 - SOVERATO (CZ)\n"]
["ing. Pietro CHIEFARI\nViale CUTURELLA, 2/D\n88068  - SOVERATO (CZ)\ntel 000-000000\ncondominio.prototipo@gmail.com\n",null,null,null,null,null,null,null,null,null,null,null,null,null,null,null,null,null,null,null,null,null,null,"PROTOTIPO\nVia BELLA, 22-30-38\n88068 - SOVERATO (CZ)\nIBAN: IT74L0760104400000000000067 \nc.c.p.: 0000000067\n"]
[]
[]
[]
[]
[]
["ATTESTAZIONE SITUAZIONE CONTABILE"]
["(Lavori)"]
[]
[null,"Il sottoscritto Pietro CHIEFARI, nella qualità di Amministratore pro tempore del condominio in intestazione"]
[]
[]
["ATTESTA"]
[null,"Che dai registri contabili condominiali risulta che il Condomino sotto indicato ha effettuato, fino alla data della presente, per i lavori di cui sopra i pagamenti sottoriportati ed ha ricevuto le eventuali restituzioni contrassegnate da importo in negativo."]
[]
[]
[null,"DENOMINAZIONE CONDOMINO"]
[]
[]
[null,"PAGAMENTI (+) e RESTITUZIONI (- tramite storno dell'importo sulla gestione ordinaria)"]
[]
[null,"DATA",null,null,null,null,null,null,null,null,null,null,null,null,"IMPORTO",null,null,null,null,null,null,"OPERAZIONE"]
[null,"========================",null,null,null,null,null,null,null,null,null,null,null,null,"==================",null,null,null,null,null,null,{"$f":"IF(LEFT(O24,1)=\"=\",\"==========\",IF(O24<0,\"Restituzione tramite storno su gestione ordinaria\",\"Pagamento rata su quota preventivata\"))","v":"=========="}]
[null,"========================",null,null,null,null,null,null,null,null,null,null,null,null,"==================",null,null,null,null,null,null,{"$f":"IF(LEFT(O25,1)=\"=\",\"==========\",IF(O25<0,\"Restituzione tramite storno su gestione ordinaria\",\"Pagamento rata su quota preventivata\"))","v":"=========="}]
[null,"========================",null,null,null,null,null,null,null,null,null,null,null,null,"==================",null,null,null,null,null,null,"=========="]
[null,"========================",null,null,null,null,null,null,null,null,null,null,null,null,"==================",null,null,null,null,null,null,"=========="]
[null,"========================",null,null,null,null,null,null,null,null,null,null,null,null,"==================",null,null,null,null,null,null,"=========="]
[null,"========================",null,null,null,null,null,null,null,null,null,null,null,null,"==================",null,null,null,null,null,null,"=========="]
[null,"========================",null,null,null,null,null,null,null,null,null,null,null,null,"==================",null,null,null,null,null,null,"=========="]
[null,"========================",null,null,null,null,null,null,null,null,null,null,null,null,"==================",null,null,null,null,null,null,"=========="]
[null,"========================",null,null,null,null,null,null,null,null,null,null,null,null,"==================",null,null,null,null,null,null,"=========="]
[null,"========================",null,null,null,null,null,null,null,null,null,null,null,null,"==================",null,null,null,null,null,null,"=========="]
[null,"========================",null,null,null,null,null,null,null,null,null,null,null,null,"==================",null,null,null,null,null,null,"=========="]
[null,"========================",null,null,null,null,null,null,null,null,null,null,null,null,"==================",null,null,null,null,null,null,"=========="]
[null,"========================",null,null,null,null,null,null,null,null,null,null,null,null,"==================",null,null,null,null,null,null,"=========="]
[null,"========================",null,null,null,null,null,null,null,null,null,null,null,null,"==================",null,null,null,null,null,null,"=========="]
[null,"========================",null,null,null,null,null,null,null,null,null,null,null,null,"==================",null,null,null,null,null,null,"=========="]
[null,"========================",null,null,null,null,null,null,null,null,null,null,null,null,"==================",null,null,null,null,null,null,"=========="]
[null,"========================",null,null,null,null,null,null,null,null,null,null,null,null,"==================",null,null,null,null,null,null,"=========="]
[null,"========================",null,null,null,null,null,null,null,null,null,null,null,null,"==================",null,null,null,null,null,null,"=========="]
[null,"========================",null,null,null,null,null,null,null,null,null,null,null,null,"==================",null,null,null,null,null,null,"=========="]
[null,"========================",null,null,null,null,null,null,null,null,null,null,null,null,"==================",null,null,null,null,null,null,"=========="]
[null,"TOTALE",null,null,null,null,null,null,null,null,null,null,null,null,{"$f":"IF(O24<>0,SUM(O24:Z43),0)","v":0}]
[]
[null,"SITUAZIONE CONTABILE RELATIVA AI LAVORI IN PREMESSA"]
[]
[null,"DOVUTO a CONSUNTIVO"]
[null,"VERSATO"]
[null,{"$f":"IF(ABS(L48-L49)<0.009,\"OBBLIGAZIONE ESTINTA\",IF((L48-L49)<0,\"SALDO a CREDITO\",\"SALDO a DEBITO\"))","v":"OBBLIGAZIONE ESTINTA"},null,null,null,null,null,null,null,null,null,{"$f":"IF(ABS(L48-L49)<0.009,\"\",IF((L48-L49)>0,L48-L49,L49-L48))","v":""},null,null,null,null,null,null,null,null,{"$f":"IF(U48>0,U48-U49,\"\")","v":""}]
[]
[null,"Il presente attestato sostituisce tutti gli analoghi rilasciati in date precedenti."]
[null,"In fede."]
[]
[null,null,null,{"$f":"\"SOVERATO \" & TEXT(TODAY(),\"gg-mmmm-aaaa\")","v":"SOVERATO 24-maggio-2020"},null,null,null,null,null,null,null,null,null,null,null,null,null,null,null,null,null,null,null,null,"L'amministratore"]

{"sheet":"Mod-Certificazione","index":9,"n_rows":39,"n_cols":29,"rows_kept":39,"cut":false,"hidden":true,"merged":[[19,1,20,34],[21,1,22,34],[7,0,7,34],[8,0,8,34],[13,0,13,34],[14,1,15,34],[16,1,17,34],[10,2,10,33],[18,14,18,20],[0,0,0,12],[0,13,5,22],[0,23,0,35],[1,0,5,12],[1,23,5,35],[24,1,24,34],[25,1,26,34],[34,1,34,34],[36,0,36,34],[29,1,29,4],[29,5,29,17],[29,18,29,27],[29,28,29,33],[31,1,31,34],[33,1,33,34],[28,1,28,4],[28,5,28,17],[28,18,28,27],[28,28,28,33]]}
["Amministratore",null,null,null,null,null,null,null,null,null,null,null,null,"C.F. 0000000000",null,null,null,null,null,null,null,null,null,"Condominio:\nCondominio Complesso “CUTURELLA”\nViale CUTURELLA - Via degli OLMI - Via CARCARA - Via TRENTO e TRIESTE\n88068 - SOVERATO (CZ)\n"]
["ing. Pietro CHIEFARI\nViale CUTURELLA, 2/D\n88068  - SOVERATO (CZ)\ntel 000-000000\ncondominio.prototipo@gmail.com\n",null,null,null,null,null,null,null,null,null,null,null,null,null,null,null,null,null,null,null,null,null,null,"PROTOTIPO\nVia BELLA, 22-30-38\n88068 - SOVERATO (CZ)\nIBAN: IT74L0760104400000000000067 \nc.c.p.: 0000000067\n"]
[]
[]
[]
[]
[]
["ATTESTAZIONE"]
["(art. 16 bis del TUIR – comma 1 del 22 Dicembre 1986, n. 917 e successive integrazioni)"]
[]
[null,null,"[ denominaione del lavoro]"]
[]
["Il sottoscritto Pietro CHIEFARI, nella qualità di Amministratore pro tempore del condominio in intestazione"]
["premesso"]
["●","Che l'intervento edilizio di cui sopra è stato approvato assieme alla relativa ripartizione dalle assemblee condominiali del 17-11-2016 e 28-9-2017;"]
[]
["●","Che per tale intervento questa Amministrazione ha corrisposto agli aventi diritto nel corso dell'anno, tramite bonifici bancari, pagamenti per un ammontare complessivo di €  "]
[]
[]
["●","Che le ricevute di tali bonifici sono in possesso di questa Amministrazione Condominiale per come previsto dall'art. 1 della legge 449/97 e relativo regolamento n° 41 del 18.02.1998;"]
[]
["●","Che tutta la documentazione (autorizzazioni necessarie, delibere di approvazione e ripartizione, ecc.) è custodita nello archivio condominiale, a disposizione degli Uffici Finanziari, a semplice richiesta, per eventuali verifiche e controlli;"]
[]
["●","Che il condominio in intestazione è a prevalente destinazione abitativa;"]
[null,"ATTESTA AI FINI DELLA DETRAZIONE IRPEF SECONDO LA NORMATIVA VIGENTE"]
[null,"Che il soggetto sotto indicato è titolare della quota riportata, in rapporto all'intero importo pagato nell'anno di attestazione da questa Amministrazione per i lavori sopradetti."]
[]
[]
[null,"ANNO",null,null,null,"SOGGETTO",null,null,null,null,null,null,null,null,null,null,null,null,"CODICE FISCALE",null,null,null,null,null,null,null,null,null,"QUOTA"]
[]
[]
[null,"La quota attestata può essere detratta  al 50% in dieci annualità fiscali a decorrere dall'anno sopra indicato. "]
[]
[null,"Si precisa che tale quota è stata comunicata all'Agenzia delle Entrate in data 26-2-2018 tramite invio telematico (protocollo 18022619022717354), assieme alla seguente informazione:"]
[null,"Pagamento parzialmente o interamente non corrisposto al 31 dicembre dell'anno di riferimento."]
[]
["Si rammenta però a coloro che non hanno corrisposto interamente la quota entro il 31-12 dell'anno che è comunque possibile detrarre la stessa se corrisposta al Condominio entro la data di presentazione della propria dichiarazione IRPEF relativa all'anno.  A tal riguardo fanno fede le ricevure dei pagamenti effettuati e/o l'attestazione rilasciata dall'amministratore sui pagamenti relativi ai lavori in oggetto.\n"]
[]
[null,null,null,{"$f":"\"SOVERATO \" & TEXT(TODAY(),\"gg-mmmm-aaaa\")","v":"SOVERATO 24-maggio-2020"},null,null,null,null,null,null,null,null,null,null,null,null,null,null,null,null,null,null,null,null,"L'amministratore"]

{"sheet":"1","index":10,"n_rows":29,"n_cols":6,"rows_kept":29,"cut":false,"hidden":true,"merged":[[4,0,4,1],[4,2,4,5],[27,0,27,5],[0,0,0,5],[1,1,1,5],[2,0,2,1],[2,2,2,5],[3,0,3,1],[3,2,3,5]]}
["SCHEDA CONTABILE CONDOMINO"]
[1]
["Recapito"]
["C.F."]
["Unità Condom."]
["N.","DATA","OPERAZIONE CONTABILE","DEBITO\nOPERAZIONE","CREDITO\nOPERAZIONE","SALDO\nalla DATA"]
[null,null,null,null,null,{"$f":"IF((-D7+E7)<>0,-D7+E7,0)","v":0}]
[null,null,null,null,null,{"$f":"IF(B8<>\"\",-D8+E8+F7,0)","v":0}]
[null,null,null,null,null,{"$f":"IF(B9<>\"\",-D9+E9+F8,0)","v":0}]
[null,null,null,null,null,0]
[null,null,null,null,null,0]
[null,null,null,null,null,0]
[null,null,null,null,null,0]
[null,null,null,null,null,0]
[null,null,null,null,null,0]
[null,null,null,null,null,0]
[null,null,null,null,null,0]
[null,null,null,null,null,0]
[null,null,null,null,null,0]
[null,null,null,null,null,0]
[null,null,null,null,null,0]
[null,null,null,null,null,0]
[null,null,null,null,null,0]
[null,null,null,null,null,0]
[null,null,null,null,null,0]
[null,null,null,null,null,0]
[null,null,null,null,null,0]
["La colonna \"SALDO alla DATA\" riporta il saldo contabile progressivo alla data dell'operazione.\nIl credito vantato dal condomino nei confronti del condominio è riportato in positivo, mentre è riportato in negativo il debito che il condomino ha nei confronti del condominio. \n"]
[null,null,null,{"$f":"SUM(D7:D27)","v":0},{"$f":"SUM(E7:E27)","v":0},{"$f":"D29-E29","v":0}]

{"sheet":"R","index":11,"n_rows":152,"n_cols":21,"rows_kept":152,"cut":false,"hidden":true,"merged":[[145,1,145,4],[145,9,145,19],[137,1,138,5],[137,15,137,21],[138,15,138,21],[139,15,139,21],[141,10,141,21],[129,7,152,7],[145,20,145,22],[146,20,146,22],[151,9,151,16],[151,17,151,22],[148,1,148,4],[148,9,148,19],[148,20,148,22],[149,3,149,4],[149,17,149,19],[149,20,149,22],[146,1,146,4],[146,9,146,19],[147,1,147,4],[147,9,147,19],[147,20,147,22],[143,1,143,5],[144,1,144,4],[144,9,144,19],[127,8,127,22],[129,1,129,5],[130,16,131,22],[133,16,133,22],[136,1,136,4],[136,15,136,21],[144,20,144,22],[123,3,123,4],[123,17,123,19],[123,20,123,22],[125,9,125,16],[125,17,125,22],[103,7,126,7],[113,15,113,21],[115,10,115,21],[117,1,117,5],[118,1,118,4],[118,9,118,19],[121,1,121,4],[121,9,121,19],[121,20,121,22],[122,1,122,4],[122,9,122,19],[122,20,122,22],[118,20,118,22],[120,1,120,4],[120,9,120,19],[119,20,119,22],[120,20,120,22],[96,1,96,4],[96,9,96,19],[94,1,94,4],[119,1,119,4],[119,9,119,19],[94,20,94,22],[100,9,100,16],[100,17,100,22],[103,1,103,5],[104,16,105,22],[107,16,107,22],[110,1,110,4],[110,15,110,21],[111,1,112,5],[111,15,111,21],[112,15,112,21],[88,15,88,21],[78,7,100,7],[95,20,95,22],[90,10,90,21],[92,1,92,5],[93,1,93,4],[93,9,93,19],[93,20,93,22],[82,16,82,22],[85,1,85,4],[85,15,85,21],[86,1,87,5],[86,15,86,21],[87,15,87,21],[96,20,96,22],[97,1,97,4],[97,9,97,19],[97,20,97,22],[98,3,98,4],[98,17,98,19],[98,20,98,22],[94,9,94,19],[95,1,95,4],[95,9,95,19],[79,16,80,22],[70,20,70,22],[71,1,71,4],[71,9,71,19],[71,20,71,22],[72,3,72,4],[72,17,72,19],[72,20,72,22],[69,1,69,4],[69,9,69,19],[70,1,70,4],[70,9,70,19],[76,8,76,22],[78,1,78,5],[69,20,69,22],[25,8,25,22],[45,20,45,22],[36,15,36,21],[28,16,29,22],[31,16,31,22],[41,1,41,5],[39,10,39,21],[42,9,42,19],[34,1,34,4],[34,15,34,21],[27,7,49,7],[42,20,42,22],[42,1,42,4],[43,9,43,19],[44,9,44,19],[45,9,45,19],[43,1,43,4],[37,15,37,21],[35,15,35,21],[35,1,36,5],[43,20,43,22],[44,20,44,22],[44,1,44,4],[45,1,45,4],[23,17,23,22],[27,1,27,5],[21,17,21,19],[21,20,21,22],[23,9,23,16],[21,3,21,4],[8,1,8,4],[15,1,15,5],[19,9,19,19],[19,20,19,22],[9,1,10,5],[17,9,17,19],[18,9,18,19],[20,9,20,19],[20,20,20,22],[16,1,16,4],[17,1,17,4],[18,1,18,4],[19,1,19,4],[20,1,20,4],[1,7,24,7],[1,1,1,5],[2,16,3,22],[5,16,5,22],[46,9,46,19],[46,20,46,22],[53,16,54,22],[56,16,56,22],[59,1,59,4],[59,15,59,21],[60,1,61,5],[60,15,60,21],[61,15,61,21],[46,1,46,4],[49,9,49,16],[49,17,49,22],[67,9,67,19],[67,20,67,22],[52,7,75,7],[74,9,74,16],[74,17,74,22],[47,3,47,4],[52,1,52,5],[47,17,47,19],[47,20,47,22],[68,1,68,4],[68,9,68,19],[68,20,68,22],[62,15,62,21],[64,10,64,21],[66,1,66,5],[67,1,67,4],[13,10,13,21],[16,9,16,19],[16,20,16,22],[8,15,8,21],[9,15,9,21],[10,15,10,21],[11,15,11,21],[17,20,17,22],[18,20,18,22]]}
[]
[null,"MATRICE",null,null,null,null,null,"& ----------------------------------------------------------------------------------------------------------------------------",null,"Condominio"]
[null,null,null,null,null,null,null,null,null,null,null,null,null,null,null,null,"RICEVUTA n. _____________"]
[null,"RICEVUTA"]
[]
[null,"Data",null,null,null,null,null,null,null,null,null,null,null,null,null,null,"Data _______________________________"]
[]
[]
[null,"Condomino",null,null,null,null,null,null,null,"Ricevute dal Condomino"]
[null,{"$f":"P9","v":0},null,null,null,null,null,null,null,"Unita Immobiliare"]
[null,null,null,null,null,null,null,null,null,"Part.","Sub"]
[null,"Unità immobiliare","Part.",{"$f":"J12","v":0},"Sub",{"$f":"K12","v":0}]
[]
[null,null,null,null,null,null,null,null,null,"€"]
[]
[null,"CAUSALE",null,null,null,null,null,null,null,"per"]
[null,{"$f":"J17","v":0},null,null,null,{"$f":"U17","v":0}]
[null,{"$f":"J18","v":0},null,null,null,{"$f":"U18","v":0}]
[null,0,null,null,null,0]
[null,0,null,null,null,0]
[null,0,null,null,null,0]
[null,null,null,"TOTALE",null,{"$f":"SUM(F17:F21)","v":0},null,null,null,null,null,null,null,null,null,null,null,"TOTALE RICEVUTO   ",null,null,{"$f":"SUM(U17:W21)","v":0}]
[]
[null,null,null,null,null,null,null,null,null,"firma dell'Amminstratore",null,null,null,null,null,null,null,"La presente ricevuta viene rilasciata s.b.f. degli assegni e con riserva di esigere ogni altra somma che risultasse dovuta in seguito a rendiconto consuntivo, nuovi accertamenti o nuove delibere dell'Assemblea."]
[]
["& ---------------------------------------------------------------------------------------------------------------------------------------",null,null,null,null,null,null,null,"&---------------------------------------------------------------------------------------------------------------------------------------------------------------------------------------"]
[]
[null,"MATRICE",null,null,null,null,null,"& ----------------------------------------------------------------------------------------------------------------------------",null,"Condominio"]
[null,null,null,null,null,null,null,null,null,null,null,null,null,null,null,null,"RICEVUTA n. _____________"]
[null,"RICEVUTA"]
[]
[null,"Data",null,null,null,null,null,null,null,null,null,null,null,null,null,null,"Data _______________________________"]
[]
[]
[null,"Condomino",null,null,null,null,null,null,null,"Ricevute dal Condomino"]
[null,{"$f":"P35","v":0},null,null,null,null,null,null,null,"Unita Immobiliare"]
[null,null,null,null,null,null,null,null,null,"Part.","Sub"]
[null,"Unità immobiliare","Part.",{"$f":"J38","v":0},"Sub",{"$f":"K38","v":0}]
[]
[null,null,null,null,null,null,null,null,null,"€"]
[]
[null,"CAUSALE",null,null,null,null,null,null,null,"per"]
[null,{"$f":"J43","v":0},null,null,null,{"$f":"U43","v":0}]
[null,{"$f":"J44","v":0},null,null,null,{"$f":"U44","v":0}]
[null,0,null,null,null,0]
[null,0,null,null,null,0]
[null,0,null,null,null,0]
[null,null,null,"TOTALE",null,{"$f":"SUM(F43:F47)","v":0},null,null,null,null,null,null,null,null,null,null,null,"TOTALE RICEVUTO   ",null,null,{"$f":"SUM(U43:W47)","v":0}]
[]
[null,null,null,null,null,null,null,null,null,"firma dell'Amminstratore",null,null,null,null,null,null,null,"La presente ricevuta viene rilasciata s.b.f. degli assegni e con riserva di esigere ogni altra somma che risultasse dovuta in seguito a rendiconto consuntivo, nuovi accertamenti o nuove delibere dell'Assemblea."]
[]
[]
[null,"MATRICE",null,null,null,null,null,"& ------------------------------------------------------------------------------------------------------------------------------------------------------------------------------------------------------------------------------------------------------------------------------------",null,"Condominio"]
[null,null,null,null,null,null,null,null,null,null,null,null,null,null,null,null,"RICEVUTA n. _____________"]
[null,"RICEVUTA"]
[]
[null,"Data",null,null,null,null,null,null,null,null,null,null,null,null,null,null,"Data _______________________________"]
[]
[]
[null,"Condomino",null,null,null,null,null,null,null,"Ricevute dal Condomino"]
[null,{"$f":"P60","v":0},null,null,null,null,null,null,null,"Unita Immobiliare"]
[null,null,null,null,null,null,null,null,null,"Part.","Sub"]
[null,"Unità immobiliare","Part.",{"$f":"J63","v":0},"Sub",{"$f":"K63","v":0}]
[]
[null,null,null,null,null,null,null,null,null,"€"]
[]
[null,"CAUSALE",null,null,null,null,null,null,null,"per"]
[null,{"$f":"J68","v":0},null,null,null,{"$f":"U68","v":0}]
[null,{"$f":"J69","v":0},null,null,null,0]
[null,0,null,null,null,0]
[null,0,null,null,null,0]
[null,0,null,null,null,0]
[null,null,null,"TOTALE",null,{"$f":"SUM(F68:F72)","v":0},null,null,null,null,null,null,null,null,null,null,null,"TOTALE RICEVUTO   ",null,null,{"$f":"SUM(U68:W72)","v":0}]
[]
[null,null,null,null,null,null,null,null,null,"firma dell'Amminstratore",null,null,null,null,null,null,null,"La presente ricevuta viene rilasciata s.b.f. degli assegni e con riserva di esigere ogni altra somma che risultasse dovuta in seguito a rendiconto consuntivo, nuovi accertamenti o nuove delibere dell'Assemblea."]
[]
["& --------------------------------------------------------------------------------------------------------------------------------------------------------------------------------------------------------------------------------------------------------------------------------------------------------------------------------------------------",null,null,null,null,null,null,null,"&---------------------------------------------------------------------------------------------------------------------------------------------------------------------------------------"]
[]
[null,"MATRICE",null,null,null,null,null,"& ----------------------------------------------------------------------------------------------------------------------------",null,"Condominio"]
[null,null,null,null,null,null,null,null,null,null,null,null,null,null,null,null,"RICEVUTA n. _____________"]
[null,"RICEVUTA"]
[]
[null,"Data",null,null,null,null,null,null,null,null,null,null,null,null,null,null,"Data _______________________________"]
[]
[]
[null,"Condomino",null,null,null,null,null,null,null,"Ricevute dal Condomino"]
[null,{"$f":"P86","v":0},null,null,null,null,null,null,null,"Unita Immobiliare"]
[null,null,null,null,null,null,null,null,null,"Part.","Sub"]
[null,"Unità immobiliare","Part.",{"$f":"J89","v":0},"Sub",{"$f":"K89","v":0}]
[]
[null,null,null,null,null,null,null,null,null,"€"]
[]
[null,"CAUSALE",null,null,null,null,null,null,null,"per"]
[null,{"$f":"J94","v":0},null,null,null,{"$f":"U94","v":0}]
[null,{"$f":"J95","v":0},null,null,null,{"$f":"U95","v":0}]
[null,0,null,null,null,0]
[null,0,null,null,null,0]
[null,0,null,null,null,0]
[null,null,null,"TOTALE",null,{"$f":"SUM(F94:F98)","v":0},null,null,null,null,null,null,null,null,null,null,null,"TOTALE RICEVUTO   ",null,null,{"$f":"SUM(U94:W98)","v":0}]
[]
[null,null,null,null,null,null,null,null,null,"firma dell'Amminstratore",null,null,null,null,null,null,null,"La presente ricevuta viene rilasciata s.b.f. degli assegni e con riserva di esigere ogni altra somma che risultasse dovuta in seguito a rendiconto consuntivo, nuovi accertamenti o nuove delibere dell'Assemblea."]
[]
[]
[null,"MATRICE",null,null,null,null,null,"& ------------------------------------------------------------------------------------------------------------------------------------------------------------------------------------------------------------------------------------------------------------------------------------",null,"Condominio"]
[null,null,null,null,null,null,null,null,null,null,null,null,null,null,null,null,"RICEVUTA n. _____________"]
[null,"RICEVUTA"]
[]
[null,"Data",null,null,null,null,null,null,null,null,null,null,null,null,null,null,"Data _______________________________"]
[]
[]
[null,"Condomino",null,null,null,null,null,null,null,"Ricevute dal Condomino"]
[null,{"$f":"P111","v":0},null,null,null,null,null,null,null,"Unita Immobiliare"]
[null,null,null,null,null,null,null,null,null,"Part.","Sub"]
[null,"Unità immobiliare","Part.",{"$f":"J114","v":0},"Sub",{"$f":"K114","v":0}]
[]
[null,null,null,null,null,null,null,null,null,"€"]
[]
[null,"CAUSALE",null,null,null,null,null,null,null,"per"]
[null,{"$f":"J119","v":0},null,null,null,{"$f":"U119","v":0}]
[null,{"$f":"J120","v":0},null,null,null,{"$f":"U120","v":0}]
[null,0,null,null,null,0]
[null,0,null,null,null,0]
[null,0,null,null,null,0]
[null,null,null,"TOTALE",null,{"$f":"SUM(F119:F123)","v":0},null,null,null,null,null,null,null,null,null,null,null,"TOTALE RICEVUTO   ",null,null,{"$f":"SUM(U119:W123)","v":0}]
[]
[null,null,null,null,null,null,null,null,null,"firma dell'Amminstratore",null,null,null,null,null,null,null,"La presente ricevuta viene rilasciata s.b.f. degli assegni e con riserva di esigere ogni altra somma che risultasse dovuta in seguito a rendiconto consuntivo, nuovi accertamenti o nuove delibere dell'Assemblea."]
[]
["& --------------------------------------------------------------------------------------------------------------------------------------------------------------------------------------------------------------------------------------------------------------------------------------------------------------------------------------------------",null,null,null,null,null,null,null,"&---------------------------------------------------------------------------------------------------------------------------------------------------------------------------------------"]
[]
[null,"MATRICE",null,null,null,null,null,"& ----------------------------------------------------------------------------------------------------------------------------",null,"Condominio"]
[null,null,null,null,null,null,null,null,null,null,null,null,null,null,null,null,"RICEVUTA n. _____________"]
[null,"RICEVUTA"]
[]
[null,"Data",null,null,null,null,null,null,null,null,null,null,null,null,null,null,"Data _______________________________"]
[]
[]
[null,"Condomino",null,null,null,null,null,null,null,"Ricevute dal Condomino"]
[null,{"$f":"P137","v":0},null,null,null,null,null,null,null,"Unita Immobiliare"]
[null,null,null,null,null,null,null,null,null,"Part.","Sub"]
[null,"Unità immobiliare","Part.",{"$f":"J140","v":0},"Sub",{"$f":"K140","v":0}]
[]
[null,null,null,null,null,null,null,null,null,"€"]
[]
[null,"CAUSALE",null,null,null,null,null,null,null,"per"]
[null,{"$f":"J145","v":0},null,null,null,{"$f":"U145","v":0}]
[null,{"$f":"J146","v":0},null,null,null,{"$f":"U146","v":0}]
[null,0,null,null,null,0]
[null,0,null,null,null,0]
[null,0,null,null,null,0]
[null,null,null,"TOTALE",null,{"$f":"SUM(F145:F149)","v":0},null,null,null,null,null,null,null,null,null,null,null,"TOTALE RICEVUTO   ",null,null,{"$f":"SUM(U145:W149)","v":0}]
[]
[null,null,null,null,null,null,null,null,null,"firma dell'Amminstratore",null,null,null,null,null,null,null,"La presente ricevuta viene rilasciata s.b.f. degli assegni e con riserva di esigere ogni altra somma che risultasse dovuta in seguito a rendiconto consuntivo, nuovi accertamenti o nuove delibere dell'Assemblea."]